Cogmind - Beta 16 --- EXPLORER MODE // 2025.11.25 @ 15:39:26 Player: K.K.Y. Result: Destroyed by G-34 Mercenary with Small Laser Performance ------------- Evolutions (0) 0 Regions Visited (2) 400 Robots Destroyed (9) 45 Value Destroyed (222) 222 Prototype IDs (0) 0 Alien Tech Used (0) 0 Bonus (0) 0 TOTAL SCORE: 667 Bonus ------- None Cogmind --------- Core Integrity 0/250 Matter 300/300 Energy 100/100 System Corruption 0% Temperature Cool (6) Movement Core (350) Ox6 Location -10/Mines Parts ------- > --- POWER (1) -------- (None) > --- PROPULSION (2) --- (None) > --- UTILITY (3) ------ Large Storage Unit Targeting Computer > --- WEAPON (2) ------- (None) > --- INVENTORY (15) --- Light Treads Medium Storage Unit Huge Storage Unit Shock Absorption System Peak State ------------ > --- POWER ------------ (None) > --- PROPULSION ------- Light Treads Light Treads > --- UTILITY ---------- Large Storage Unit Targeting Computer Targeting Computer > --- WEAPON ----------- Assault Rifle Rocket Launcher > --- INVENTORY -------- Light Treads Medium Storage Unit Huge Storage Unit Improved Light Armor Plating Shock Absorption System Assault Rifle [Rating: 9] Favorites ----------- Power Ion Engine Engine Ion Engine Propulsion Light Treads Treads Light Treads Utility Targeting Computer Storage Large Storage Unit Processor Targeting Computer Protection Improved Light Armor Plating Weapon Assault Rifle Ballistic Gun Assault Rifle Launcher Rocket Launcher Build | -11 -10 -10 ------- Run | Yrd Mat Min Slots Evolved 1 | . 1 . Power . | . . . Propulsion . | . . . Utility 1 | . 1 . Weapon . | . . . Parts Attached 11 | 6 3 2 Power 1 | 1 . . Engine 1 | 1 . . Core . | . . . Reactor . | . . . Propulsion 2 | 2 . . Treads 2 | 2 . . Leg . | . . . Wheel . | . . . Hover . | . . . Flight . | . . . Utility 5 | 1 3 1 Device . | . . . Storage 2 | 1 1 . Processor 2 | . 2 . Hackware . | . . . Protection 1 | . . 1 Artifact . | . . . Weapon 3 | 2 . 1 Energy Gun . | . . . Energy Cannon . | . . . Ballistic Gun 2 | 2 . . Ballistic Cannon . | . . . Launcher 1 | . . 1 Special Weapon . | . . . Impact Weapon . | . . . Slashing Weapon . | . . . Piercing Weapon . | . . . Special Melee Weapon . | . . . Unidentified Prototypes . | . . . Parts Lost 7 | . . 7 Power . | . . . Propulsion 2 | . . 2 Utility 2 | . . 2 Weapon 3 | . . 3 Highest Loss Streak 3 | . . 3 To Critical Strikes . | . . . Average Backups 3 | 1 1 4 Power . | . . . Propulsion . | . . 1 Utility 2 | . 1 2 Weapon . | . . . Tool/Special . | . . . Unused Backups 3 | . . 3 Power . | . . . Propulsion 1 | . . 1 Utility 2 | . . 2 Weapon . | . . . Tool/Special . | . . . Average Slot Usage (%) 83 | . 93 77 Engine 6 | . 12 2 Treads 23 | . 25 22 Storage 12 | . 12 12 Processor 19 | . 18 20 Protection 1 | . . 2 Ballistic Gun 17 | . 25 13 Launcher 2 | . . 3 Peak Build Rating 9 | 6 8 9 Average Rating 7 | 3 7 7 On Entrance 4 | . 6 8 Avg Prop Armor Cover (%) . | . . . Naked Turns . | . . . Heaviest Build 29 | 19 29 29 Greatest Support 40 | 40 40 40 Greatest Overweight (x) 7 | . . 7 Average Overweight (x) . | . . . Largest Inventory Capacity 15 | 10 15 15 Average Capacity 14 | 8 14 15 Most Carried 6 | 5 3 6 Average Carried 3 | 1 1 4 Final Capacity 15 | 10 15 15 Final Carried 4 | 1 3 4 Class Distribution -------------------- 100% | Hacker-Mutant Dominant Class ---------------- Hacker-Mutant | -10/Materials Hacker-Mutant | -10/Mines Resources | -11 -10 -10 ----------- Run | Yrd Mat Min Matter Collected 538 | 49 74 415 Remotely . | . . . Salvage Created 274 | . 65 209 Parts 14 | . 9 5 Haulers Intercepted . | . . . Recyclers Shooed . | . . . Parts Field Recycled . | . . . Retrieved Matter . | . . . Parts Self-Destructed . | . . . Prevented . | . . . Parts Restored . | . . . Kills | -11 -10 -10 ------- Run | Yrd Mat Min Combat Hostiles Destroyed 24 | . 4 20 Melee 1 | . . 1 Guns 12 | . 4 8 AOE 11 | . . 11 Classes Destroyed 5 | . 1 4 Worker 1 | . . 1 Swarmer 4 | . 4 . Grunt 3 | . . 3 Demolisher 1 | . . 1 Assembled 16 | . . 16 Best Kill Streak 11 | . 4 11 Combat Bots Only 10 | . 4 10 Max Kills in Single Turn 3 | . 2 3 Gunslinging 1 | . 1 . Exploded 3 | . . 3 Melee 1 | . . 1 Uniques/NPCs Destroyed . | . . . Combat | -11 -10 -10 -------- Run | Yrd Mat Min Hostile Shots Fired 128 | . 16 112 Missed 30 | . 2 28 Hits 98 | . 14 84 Melee 7 | . . 7 Projectile 91 | . 14 77 AOE 1 | . . 1 Critical Strikes 3 | . 1 2 Damage Taken 1147 | . 59 1088 Core 250 | . 14 236 Absorbed by Shields . | . . . Ignored by Resistances 581 | . 46 535 Core Remaining (%) 100 | 100 . . Volleys Fired 34 | . 3 31 Largest 2 | . 2 2 Hottest 53 | . 40 53 Shots Fired 62 | . 6 56 Gun 53 | . 6 47 Cannon . | . . . Launcher 9 | . . 9 Special . | . . . Kinetic 53 | . 6 47 Thermal . | . . . Explosive 9 | . . 9 Electromagnetic . | . . . Robot Hit Streak 37 | . 6 37 Robot Miss Streak 1 | . . 1 Penetration Max . | . . . Secondary Targets 6 | . 2 4 Max Gunslinging Chain 1 | . 1 1 Shots Hit Robots 57 | . 6 51 Core Hits 47 | . 4 43 Critical Kills . | . . . Critical Parts Destroyed . | . . . Critical Strikes . | . . . Melee Attacks . | . . . Impact . | . . . Slashing . | . . . Piercing . | . . . Sneak Attacks . | . . . Combat Hostiles . | . . . Follow-up Attacks . | . . . Damage Inflicted 1498 | . 74 1424 Guns 618 | . 74 544 Cannons . | . . . Explosions 839 | . . 839 Melee . | . . . Ramming 41 | . . 41 Kinetic 618 | . 74 544 Thermal . | . . . Explosive 839 | . . 839 Electromagnetic . | . . . Impact . | . . . Slashing . | . . . Piercing . | . . . Highest Corruption . | . . . Average Corruption . | . . . Corruption Purged . | . . . Corruption Blocked . | . . . Overload Shots . | . . . Overflow Damage . | . . . Projectiles . | . . . Explosions . | . . . Melee . | . . . Knockbacks . | . . . Impact . | . . . Kinetic . | . . . Secondary . | . . . Self-Inflicted Damage 118 | . . 118 Shots 6 | . . 6 Rammed 31 | . . 31 Targets Rammed 32 | . . 32 Kicked . | . . . Crushed 1 | . . 1 Highest Temperature 24 | . . 24 Average Temperature 12 | . . 12 Received Heat Transfer 500 | . . 500 Siege Activations . | . . . Martial Activations . | . . . Shielding Activations . | . . . Robots Disrupted . | . . . Combat Hostiles . | . . . Robots Corrupted . | . . . Combat Hostiles . | . . . Parts Fried . | . . . Impact Corruptions . | . . . Robots Melted . | . . . Combat Hostiles . | . . . Parts Melted . | . . . Heat Transferred . | . . . Parts Sabotaged . | . . . Parts Stolen . | . . . Parts Stripped . | . . . Power Chain Reactions . | . . . Alert | -11 -10 -10 ------- Run | Yrd Mat Min Maximum Alert Level . | . . . Low Security (%) 100 | 100 100 100 Level 1 . | . . . Level 2 . | . . . Level 3 . | . . . Level 4 . | . . . Level 5 . | . . . High Security . | . . . Max Security . | . . . Peak Influence 85 | . 85 70 Initial . | . . . Average 13 | . 20 10 Influence Increases 284 | . 100 184 Destroy 0b10 Robot/C 160 | . 80 80 Destroy 0b10 Robot/NC 5 | . . 5 Destroy Leader 50 | . 20 30 Destroy Structure 69 | . . 69 Influence Decreases 284 | . 100 184 Time Decay 239 | . 100 139 Lost Part 45 | . . 45 Squads Dispatched . | . . . Investigation . | . . . Extermination . | . . . Reinforcement . | . . . Assault . | . . . Garrison . | . . . Intercept . | . . . Searches Triggered . | . . . Construction Impeded . | . . . Haulers Reinforced . | . . . Active Scanning Responses . | . . . Cargo Convoy Interrupts . | . . . Stealth | -11 -10 -10 --------- Run | Yrd Mat Min Distress Signals . | . . . Communications Jammed . | . . . Distress Signals . | . . . Times Spotted 27 | . 4 23 Peak Tracking Total 10 | . 5 10 Tactical Retreats 1 | . . 1 Traps | -11 -10 -10 ------- Run | Yrd Mat Min Traps Triggered . | . . . Indirectly . | . . . Trap Hack Attempts . | . . . Triggered . | . . . Disarmed . | . . . Reprogrammed . | . . . Reused . | . . . Traps Extracted . | . . . Installed . | . . . Triggered . | . . . Machines | -11 -10 -10 ---------- Run | Yrd Mat Min Machines Disabled . | . . . Max in Single Turn . | . . . Machines Repaired . | . . . Machines Dismantled . | . . . Machines Sabotaged . | . . . Overloaded Fab Kills . | . . . Hacking | -11 -10 -10 --------- Run | Yrd Mat Min Machines Accessed . | . . . Terminals . | . . . Fabricators . | . . . Repair Stations . | . . . Recycling Units . | . . . Scanalyzers . | . . . Garrison Access . | . . . Total Hacks . | . . . Successful . | . . . Failed . | . . . Catastrophic . | . . . Database Lockouts . | . . . Manual . | . . . Terminals . | . . . Fabricators . | . . . Repair Stations . | . . . Recycling Units . | . . . Scanalyzers . | . . . Garrison Access . | . . . Terminal Hacks . | . . . Fabricator Hacks . | . . . Repair Station Hacks . | . . . Recycling Unit Hacks . | . . . Scanalyzer . | . . . Garrison Access Hacks . | . . . Unauthorized Hacks . | . . . Terminals . | . . . Fabricators . | . . . Repair Stations . | . . . Recycling Units . | . . . Scanalyzers . | . . . Garrison Access . | . . . Data Cores Recovered . | . . . Used . | . . . Hacking Detections . | . . . Full Trace Events . | . . . Feedback Events . | . . . Feedback Blocked . | . . . Robot Schematics Acquired . | . . . Robots Built . | . . . Authchips . | . . . Time . | . . . Total Robot Build Rating . | . . . Part Schematics Acquired . | . . . Parts Built . | . . . Authchips . | . . . Time . | . . . Total Part Build Rating . | . . . Part Studies Acquired . | . . . Parts Repaired . | . . . Time . | . . . Parts Recycled . | . . . Recycled Matter . | . . . Retrieved Matter . | . . . Retrieved Components . | . . . Parts Scanalyzed . | . . . Part Schematics Acquired . | . . . Parts Damaged . | . . . Bothacking | -11 -10 -10 ------------ Run | Yrd Mat Min Used RIF Installer . | . . . Robots Hacked . | . . . Non-combat . | . . . Combat . | . . . Robot Hacks Applied . | . . . Relay Couplers Released . | . . . Fabnet Peak Effective % . | . . . Robots Rewired . | . . . Allies Hacked . | . . . Hacks Repelled . | . . . Allies | -11 -10 -10 -------- Run | Yrd Mat Min Total Allies . | . . . Largest Group . | . . . Highest-Rated Group . | . . . Highest-Rated Ally . | . . . Total Orders . | . . . Ally Attacks . | . . . Total Damage . | . . . Kills . | . . . Allies Corrupted . | . . . Allies Melted . | . . . Intel | -11 -10 -10 ------- Run | Yrd Mat Min Active Infowar (turns) . | . . . Robot Analysis Total . | . . . Derelict Logs Recovered . | . . . Drone Launches . | . . . Drone Recoveries . | . . . Exploration | -11 -10 -10 ------------- Run | Yrd Mat Min Turns Passed 745 | 51 273 421 Spaces Moved 357 | 38 161 158 Core 20 | 19 . 1 Treads 337 | 19 161 157 Legs . | . . . Wheels . | . . . Hover . | . . . Flight . | . . . Fastest Speed 50 | 50 160 160 Average Speed 155 | 105 160 164 Slowest Speed 400 | 160 160 400 Overloaded Moves . | . . . Propulsion Burnouts . | . . . Robots Hopped . | . . . Potential Cave-ins . | . . . Cave-ins Triggered 1 | . . 1 Exploration Rate (%) 21 | 3 34 28 Regions Visited 2 Branch Regions 1 Pre-discovered Areas . | . . . Known Exits Taken 2 | 1 1 . Unknown Exits Taken . | . . . Scrap Searched . | . . . Spaces Dug . | . . . Terrain Destroyed 112 | . . 112 Melee . | . . . Projectile . | . . . AOE 112 | . . 112 Terrain Rammed . | . . . Walls Destroyed . | . . . Machines Disabled . | . . . Actions | -11 -10 -10 --------- Run | Yrd Mat Min Total 447 | 49 171 227 Wait . | . . . Move 355 | 37 160 158 Hop . | . . . Pick Up 13 | 6 4 3 Fast Attach 1 | 1 . . Attach 10 | 5 3 2 Detach 1 | . 1 . Swap 1 | . . 1 Drop . | . . . Fire 34 | . 3 31 Melee . | . . . Ram 5 | . . 5 Kick . | . . . Crush 27 | . . 27 Escape Stasis . | . . . Rewire . | . . . Trap . | . . . Miscellaneous . | . . . Route ------- -11/Scrapyard -10/Materials -10/Mines (discovered 2 exits: *Mat x2) History --------- Turn | Location | Event 7 | -11/Scrapyard | Identified exit to Materials 7 | -11/Scrapyard | Discovered exit to Materials (range 14) 52 | -11/Scrapyard | Entered Materials 52 | -10/Materials | Evolved 1 slot: Utility x1 284 | -10/Materials | Identified exit to Mines 284 | -10/Materials | Discovered exit to Mines (range 6) 304 | -10/Materials | Build established: Hacker-Mutant 325 | -10/Materials | Entered Mines 327 | -10/Mines | Identified exit to Materials 327 | -10/Mines | Discovered exit to Materials (range 10) 330 | -10/Mines | Discovered exit to Materials (range 16) 340 | -10/Mines | Received a Rocket Launcher from a helpful Derelict 371 | -10/Mines | Assembled infested the area 376 | -10/Mines | Assisted by a Guerilla fighting off Assembled 511 | -10/Mines | Destroyed 10 combat bots 597 | -10/Mines | Crushed by falling debris 597 | -10/Mines | Core integrity fell below 50% 628 | -10/Mines | Lost 3 parts (1u2w) 702 | -10/Mines | Core integrity fell below 20% 746 | -10/Mines | Destroyed by G-34 Mercenary with Small Laser Last Messages --------------- 00605_ U-05 Engineer lays Concrete. 00608_ The unstable cave ceiling collapses. 00608_ U-05 Engineer lays Concrete. 00609_ U-05 Engineer builds a Wall. 00614_ U-05 Engineer lays Concrete. 00641_ Acquired 13 matter. 00650_ Critical hit (Burn: +37). 00657_ Assault Rifle destroyed. 00657_ Slammed into G-47 Trooper. 00666_ Seismic Survey Station disabled. 00667_ Slammed into G-47 Trooper. 00689_ Lgt. Treads destroyed. 00689_ Slammed into G-47 Trooper. 00709_ Crushed G-47 Trooper. 00709_ G-47 Trooper destroyed. 00721_ Slammed into G-34 Mercenary. 00724_ Lgt. Treads destroyed. 00729_ Slammed into G-34 Mercenary. 00734_ Imp. Light Armor Plating destroyed. 00737_ Slammed into G-34 Mercenary. Map ----- +----------------------------------------------------+ | ??????????????????????### # ##### | | ??????????????????????## # # | | ?????????????????????## # | | ?????????????????????# ## ### | | ?????????????????????## # < | | ?????????????????????# # ## | | ?????????????????????# % ### # | | ?????????????????????#* # # # | | ?????????????????????#%## # # | | ?????????????????????# ######## # | | ?????????????????????# # # | | ????????????? ??????# # #### | | ????????????? ???#%# #? | | ???????????????# ## # # ##? | | ????????????????# %= #?? | | ?????????????????# ### ##? | | ?????????????????# #?# # # #? | | ?????????????????# ??# # ##? | | ????????????????? #??#### # ##?? | | ????########???## #???# # ##??? | | ????#%%%%%%#??## ???#### # #??? | | ????#% "" %#??# ????# ###??? | | ????#% """%#??# #???## ##???? | | ????#% ""%#??# #???# ###??? | | ????#% g%%#?## ##??### ###??? | | ????# @%%### ##??# " ##??? | | ????## #### #??## ##??? | | ?????# ## #???## ##??? | | ?????# # ##?##### ##??? | | ?????# #### ##?## # #???? | | ?????## ##??# #?## # !##??? | | ??????# ###???# ### = ##??? | | ??????####?????# % = #??? | | ???????????????##### ## #??? | | ???????????????????## # # #??? | | ????????????????????## #??? | | ?????????????# ######## ##??? | | ????????????# % #???? | | ???????????# #???? | | ???????????# ######### ##???? | | ?????????????????????????# #????? | | ????????????????????????## ##???? | | ???????????????????????## #???? | | ???????????????????????# # ##??? | | ???????????????????????# #??? | | ???????????????????????# % #??? | | ???????????????????????## ##??? | | ????????????????????????## #??? | | ?????????????????????????# # #??? | | ?????????????????????????### #??? | +----------------------------------------------------+ Best States ------------- Heat Dissipation 25 Energy Generation 10 Energy Capacity 250 Matter Stores 300 Matter Capacity 300 Sight Range 16 Terrain Scan Density 10 Armor Coverage 150 Resistance: KI 35 Resistance: TH 35 Resistance: EX 35 Resistance: EM 35 Resistance: I 35 Resistance: S 35 Resistance: P 35 Evasion (%) 50 Targeting Accuracy 10 Recoil Reduction 2 Offensive Hacking 20 Item Schematics ----------------- None Robot Schematics ------------------ None Fabricated ------------ Nothing Repaired ---------- Nothing Studied --------- None Alien Tech Used ----------------- None Achievements -------------- None Challenges ------------ None Game ------ Seed BlanketGammaNeutralizer Manual? 0 Play Time 00:06:49 Cumulative 143.7 hours Start 2025.11.25 @ 15:35:20 End 2025.11.25 @ 15:39:26 Sessions 1 Manual Loads 0 Difficulty Explorer Special Mode None Game No. 171 Rogue 0 Adventurer 0 Explorer 171 Win Type - Total 0 Types 0/0/0/0/0/0/0/0/0/0 Lore% 69 Gallery% 66 Achievement% 52 Wizard Run 0 Options --------- Layout 1 ASCII 0 Keyboard 0 Movement Mouse Keybinds 0 Fullscreen 1 Font 24/Smallcaps Map View 50x35 Zoom Use 0% Tactical HUD 1 Map Filters NONE Filters NONE Steam 1 RUN: 07b6030d-8446-4551-aefe-b980a7e4357d